fUST/lending_fUST_20240215
["ID","MTS","AMOUNT","RATE_DAILY","PERIOD"]
[314035415,1707935438384,-418.94190983,0.0002602,2]
[314035416,1707935438394,-351.70837159,0.00026098,2]
[314035418,1707935438404,-4948.19959002,0.00027856,2]
[314035420,1707935438419,-1000.0,0.00027856,2]
[314035421,1707935438431,-5738.21328088,0.00027856,2]
[314035423,1707935438444,-1357.31930325,0.00027856,2]
[314035425,1707935438458,-6077.95471725,0.00027856,2]
[314035426,1707935438470,-1499.03049179,0.00027856,2]
[314035431,1707935441802,-1456.87511991,0.00027856,2]
[314035432,1707935441811,-18332.70902064,0.00027856,2]
[314035433,1707935441861,-4077.08068526,0.00027856,2]
[314035434,1707935441871,-563.33402,0.00027856,2]
[314035435,1707935441881,-342.714599,0.00027856,2]
[314035436,1707935441890,-2920.9137625,0.00027897,2]
[314035437,1707935441900,-1183.98566039,0.00027897,2]
[314035438,1707935441911,-66.53740271,0.00027897,2]
[314035439,1707935441921,-154.90705577,0.00028594,2]
[314035440,1707935441930,-186.12414887,0.00028594,2]
[314035441,1707935441939,-511.51700851,0.00028694,2]
[314035475,1707935443458,-487.46815061,0.00028694,2]
[314035477,1707935443469,-168.422778,0.00028951,2]
[314035479,1707935443478,-166.666666,0.00030444,2]
[314035482,1707935443487,-200.0,0.00030641,15]
[314035483,1707935443496,-63.46983039,0.00030723,2]
[314035529,1707935446494,-123.47691022,0.00030723,2]
[314035531,1707935446504,-1065.92866202,0.00030794,2]
[314035533,1707935446513,-4023.04375976,0.000308,7]
[314035637,1707936632521,-50692.79462029,0.00026,2]
[314035639,1707936632531,-250.0,0.00026064,2]
[314035641,1707936632540,-338.57144917,0.00026104,2]
[314035643,1707936632549,-166.666666,0.00026352,2]
[314035644,1707936632558,-1192.28501435,0.00026594,2]
[314035646,1707936632567,-3883.78,0.00026797,3]
[314035648,1707936632577,-3236.49,0.00026797,3]
[314035650,1707936632586,-13015.298819,0.00026807,2]
[314035652,1707936632595,-730.553059,0.00026807,2]
[314035654,1707936632604,-4021.1422206,0.00026807,2]
[314035656,1707936632616,-781.27197536,0.00026807,2]
[314035686,1707936638609,-8731.55946073,0.00026807,2]
[314035687,1707936638621,-11366.02634331,0.00026807,2]
[314035688,1707936638630,-166.666666,0.0002707,2]
[314035689,1707936638639,-168.980603,0.00027582,2]
[314035690,1707936638648,-173.1714851,0.00027746,2]
[314035691,1707936638657,-166.666666,0.00027788,2]
[314035692,1707936638670,-166.666666,0.00028507,2]
[314035693,1707936638679,-200.0,0.00028599,15]
[314035694,1707936638688,-173.1714851,0.00028803,2]
[314035695,1707936638697,-166.666666,0.00029225,2]
[314035696,1707936638705,-173.1714851,0.00029859,2]
[314035697,1707936638714,-166.666666,0.00029944,2]
[314035698,1707936638723,-976.95624024,0.000308,7]
[314035699,1707936638732,-500.0,0.00030809,2]
[314035700,1707936638742,-500.0,0.00030809,2]
[314035701,1707936638751,-155.26770188,0.00030809,2]
[314035702,1707936638759,-515.84166896,0.00030809,2]
[314035703,1707936638768,-500.0,0.00030809,2]
[314035704,1707936638777,-500.0,0.00030809,2]
[314035705,1707936638786,-500.0,0.00030809,2]
[314035706,1707936638794,-500.0,0.00030809,2]
[314035707,1707936638803,-337.63525522,0.00030809,2]
[314035708,1707936638812,-500.0,0.00030809,2]
[314035709,1707936638821,-500.0,0.00030809,2]
[314035710,1707936638830,-500.0,0.00030809,2]
[314035711,1707936638839,-242.49529597,0.00030809,2]
[314035712,1707936638848,-500.0,0.00030809,2]
[314035714,1707936638857,-500.0,0.00030809,2]
[314035716,1707936638867,-500.0,0.00030809,2]
[314035717,1707936638877,-163.52565099,0.00030809,2]
[314035718,1707936638886,-500.0,0.00030809,2]
[314035719,1707936638896,-500.0,0.00030809,2]
[314035720,1707936638905,-500.0,0.00030809,2]
[314035721,1707936638914,-500.0,0.00030809,2]
[314035722,1707936638924,-500.0,0.00030809,2]
[314035723,1707936638933,-216.89623451,0.00030809,2]
[314035724,1707936638942,-500.0,0.00030809,2]
[314035725,1707936638951,-500.0,0.00030809,2]
[314035726,1707936638960,-500.0,0.00030809,2]
[314035727,1707936638969,-500.0,0.00030809,2]
[314035728,1707936638978,-500.0,0.00030809,2]
[314035729,1707936638988,-500.0,0.00030809,2]
[314035730,1707936638997,-500.0,0.00030809,2]
[314035731,1707936639007,-500.0,0.00030809,2]
[314035732,1707936639016,-500.0,0.00030809,2]
[314035733,1707936639025,-29.0626177,0.00030809,2]
[314035734,1707936639057,-360.9486933,0.00030809,2]
[314035735,1707936639069,-109.988689,0.00030809,2]
[314035736,1707936639078,-500.0,0.00030809,2]
[314035737,1707936639088,-500.0,0.00030809,2]
[314035738,1707936639097,-316.54484747,0.00030809,2]
[314035739,1707936639109,-183.45515253,0.00030809,2]
[314035740,1707936639119,-500.0,0.00030809,2]
[314035741,1707936639129,-500.0,0.00030809,2]
[314035742,1707936639138,-500.0,0.00030809,2]
[314035743,1707936639148,-500.0,0.00030809,2]
[314035744,1707936639157,-500.0,0.00030809,2]
[314035745,1707936639166,-500.0,0.00030809,2]
[314035746,1707936639176,-401.11926741,0.00030809,2]
[314035747,1707936639185,-500.0,0.00030809,2]
[314035748,1707936639195,-500.0,0.00030809,2]
[314035749,1707936639205,-500.0,0.00030809,2]
[314035750,1707936639215,-500.0,0.00030809,2]
[314035751,1707936639225,-500.0,0.00030809,2]
[314035752,1707936639235,-500.0,0.00030809,2]
[314035753,1707936639244,-500.0,0.00030809,2]
[314035754,1707936639255,-500.0,0.00030809,2]
[314035755,1707936639265,-500.0,0.00030809,2]
[314035756,1707936639275,-500.0,0.00030809,2]
[314035757,1707936639284,-500.0,0.00030809,2]
[314035758,1707936639294,-500.0,0.00030809,2]
[314035759,1707936639303,-5000.0,0.0003081,7]
[314035760,1707936639313,-31359.10809389,0.0003081,2]
[314035761,1707936639322,-5000.0,0.0003081,7]
[314035762,1707936639331,-982.39752912,0.00030823,2]
[314035763,1707936639341,-17232.66835949,0.00030828,4]
[314035771,1707936641811,-2281.78314868,0.00030818,3]
[314035772,1707936641824,-415.28685132,0.00030818,3]
[314035773,1707936641833,-583.99358678,0.00030828,4]
[314035774,1707936641845,-24154.81564241,0.00030828,4]
[314035775,1707936641867,-3734.97808962,0.00030828,4]
[314035790,1707936643658,-4293.5443217,0.00030828,4]
[314035791,1707936643670,-366.70936751,0.00030843,7]
[314035792,1707936643682,-588.21573289,0.00030843,7]
[314035805,1707936646673,-389.81045533,0.00030843,7]
[314035806,1707936646685,-717.2681638,0.00030843,7]
[314035815,1707937342418,-8388.46766418,0.00021,2]
[314035898,1707937837904,-794.85667623,0.00028728,2]
[314035900,1707937837914,-166.666666,0.00029136,2]
[314035902,1707937837923,-3484.69736893,0.00029357,2]
[314036023,1707937840914,-2134.4794123,0.00029357,2]
[314036025,1707937840926,-1000.0,0.00029357,2]
[314036027,1707937840937,-18280.82321877,0.00029357,2]
[314036029,1707937840947,-365.276529,0.00029664,2]
[314036030,1707937840956,-2813.47126933,0.0003,30]
[314036031,1707937840966,-166.666666,0.00030129,2]
[314036032,1707937840975,-153.0,0.000302,2]
[314036033,1707937840984,-153.0,0.000302,2]
[314036034,1707937840995,-153.0,0.00030341,2]
[314036035,1707937841005,-173.1714851,0.0003076,2]
[314036036,1707937841015,-150.0,0.000308,3]
[314036037,1707937841026,-2937.99628047,0.00030843,7]
[314036038,1707937841036,-3846.78,0.00030848,3]
[314036039,1707937841047,-3205.65,0.00030848,3]
[314036040,1707937841057,-2671.37,0.00030848,3]
[314036041,1707937841066,-9804.41952434,0.00030858,2]
[314036042,1707937841080,-7731.55463003,0.00030858,2]
[314036043,1707937841089,-11856.57396867,0.00030858,2]
[314036044,1707937841098,-8130.8400473,0.00030858,2]
[314036045,1707937841107,-8924.83648415,0.0003086,2]
[314036046,1707937841116,-5000.0,0.00030888,7]
[314036047,1707937841125,-816.53042432,0.00030888,2]
[314036048,1707937841134,-153.0,0.00030959,2]
[314036049,1707937841143,-153.0,0.00030959,2]
[314036050,1707937841152,-153.0,0.00030959,2]
[314036051,1707937841161,-153.0,0.00030959,2]
[314036052,1707937841171,-153.0,0.00030959,2]
[314036053,1707937841180,-153.0,0.00030959,2]
[314036054,1707937841189,-11696.57517753,0.00030997,2]
[314036055,1707937841201,-12960.5098676,0.00030997,2]
[314036056,1707937841212,-4663.00765811,0.00030997,2]
[314036057,1707937841224,-6191.9236261,0.00030997,2]
[314036058,1707937841236,-3279.6996729,0.00030997,2]
[314036059,1707937841245,-500.0,0.00030999,2]
[314036060,1707937841253,-246.32180383,0.00030999,2]
[314036061,1707937841263,-500.0,0.00030999,2]
[314036062,1707937841272,-500.0,0.00030999,2]
[314036063,1707937841281,-540.11192674,0.00030999,2]
[314036064,1707937841291,-262.27776101,0.00030999,2]
[314036065,1707937841303,-237.72223899,0.00030999,2]
[314036066,1707937841313,-500.0,0.00030999,2]
[314036067,1707937841323,-500.0,0.00030999,2]
[314036068,1707937841332,-500.0,0.00030999,2]
[314036069,1707937841341,-250.40587552,0.00030999,2]
[314036070,1707937841350,-500.0,0.00030999,2]
[314036071,1707937841359,-47484.63672865,0.00031,4]
[314036072,1707937841371,-2417.16443693,0.00031,4]
[314036073,1707937841383,-529.68975891,0.00031,4]
[314036099,1707937842795,-2374.10701609,0.00031,4]
[314036101,1707937842808,-1637.53249506,0.00031,4]
[314036165,1707937845889,-1005.96194501,0.00031,4]
[314036349,1707939038032,-3848.46518368,0.0002603,2]
[314036352,1707939038090,-5266.32759186,0.0002603,2]
[314036354,1707939038100,-196.95668809,0.0002613,3]
[314036355,1707939038109,-164.5995179,0.0002613,3]
[314036356,1707939038118,-368.63045799,0.0002613,3]
[314036357,1707939038128,-157.984482,0.0002613,3]
[314036359,1707939038137,-973.33226667,0.000289,2]
[314036361,1707939038146,-166.666666,0.00028979,2]
[314036363,1707939038155,-284.3353,0.00029474,2]
[314036364,1707939038164,-1647.0416407,0.00029517,2]
[314036365,1707939038173,-881.3721339,0.00029664,2]
[314036366,1707939038182,-169.282173,0.00030247,2]
[314036367,1707939038191,-2718.27746646,0.00030902,2]
[314036368,1707939038200,-1677.13360776,0.00030902,2]
[314036369,1707939038209,-4099.27417512,0.00030902,2]
[314036370,1707939038218,-5000.0,0.00030902,7]
[314036371,1707939038227,-166.666666,0.00030954,2]
[314036373,1707939038236,-3044.5,0.0003099,3]
[314036374,1707939038245,-2537.08,0.0003099,3]
[314036375,1707939038254,-2114.24,0.0003099,3]
[314036376,1707939038263,-59466.65993803,0.00031,4]
[314036390,1707939041257,-3265.04926911,0.00031,4]
[314036391,1707939041269,-2091.3388528,0.00031,4]
[314036392,1707939041286,-353.39471559,0.00031,4]
[314036393,1707939041297,-15134.98623146,0.00031,4]
[314036394,1707939041306,-180.3191593,0.00031047,2]
[314036395,1707939041316,-672.26413156,0.00031193,2]
[314036396,1707939041328,-180.31915929,0.00031891,2]
[314036397,1707939041338,-2909.28542662,0.0003199,7]
[314036398,1707939041349,-500.0,0.00031999,7]
[314036399,1707939041360,-500.0,0.00031999,7]
[314036400,1707939041372,-500.0,0.00031999,7]
[314036401,1707939041381,-500.0,0.00031999,7]
[314036402,1707939041390,-500.0,0.00031999,7]
[314036403,1707939041399,-500.0,0.00031999,7]
[314036404,1707939041409,-500.0,0.00031999,7]
[314036405,1707939041418,-398.98575044,0.00031999,7]
[314036406,1707939041427,-500.0,0.00031999,7]
[314036407,1707939041437,-500.0,0.00031999,7]
[314036408,1707939041446,-500.0,0.00031999,7]
[314036409,1707939041457,-500.0,0.00031999,7]
[314036410,1707939041466,-500.0,0.00031999,7]
[314036411,1707939041475,-500.0,0.00031999,7]
[314036412,1707939041484,-500.0,0.00031999,7]
[314036413,1707939041494,-500.0,0.00031999,7]
[314036414,1707939041503,-500.0,0.00031999,7]
[314036415,1707939041513,-500.0,0.00031999,7]
[314036416,1707939041522,-500.0,0.00031999,7]
[314036417,1707939041533,-165.29469603,0.00031999,7]
[314036418,1707939041542,-500.0,0.00031999,7]
[314036419,1707939041551,-500.0,0.00031999,7]
[314036420,1707939041560,-500.0,0.00031999,7]
[314036421,1707939041570,-499.20217441,0.00031999,7]
[314036422,1707939041579,-500.0,0.00031999,7]
[314036423,1707939041588,-61295.09514239,0.00032,15]
[314036424,1707939041600,-6846.08644888,0.00032,15]
[314036425,1707939041612,-3822.97936614,0.00032,15]
[314036426,1707939041623,-12514.96849188,0.00032,15]
[314036427,1707939041634,-1815.9656931,0.00032,15]
[314036428,1707939041645,-320.98239,0.00032,15]
[314036474,1707939046052,-1096.9131705,0.00032,15]
[314036564,1707940232209,-216.14987948,0.0002613,3]
[314036566,1707940232219,-5416.4040969,0.00028754,2]
[314036706,1707940238211,-2689.00937627,0.00028754,2]
[314036707,1707940238224,-5863.54182419,0.00028754,2]
[314036708,1707940238267,-10471.80018214,0.00028754,2]
[314036709,1707940238276,-166.666667,0.0002876,2]
[314036710,1707940238286,-2526.18260744,0.000288,2]
[314036711,1707940238295,-250.0,0.00028809,2]
[314036712,1707940238304,-284.3353,0.00029081,2]
[314036713,1707940238313,-11378.875734,0.00029328,2]
[314036714,1707940238323,-1026.13092839,0.000299,2]
[314036715,1707940238332,-159.9108223,0.00029959,2]
[314036716,1707940238341,-166.666667,0.00030066,2]
[314036717,1707940238351,-1385.10549867,0.00030962,2]
[314036718,1707940238360,-7309.8731645,0.00030962,2]
[314036719,1707940238369,-5000.0,0.00030976,7]
[314036720,1707940238378,-166.666667,0.00031373,2]
[314036721,1707940238387,-168.980603,0.00031407,2]
[314036722,1707940238397,-494.68145805,0.000319,2]
[314036723,1707940238406,-152.1487591,0.00031936,2]
[314036724,1707940238416,-153.0,0.00031973,2]
[314036725,1707940238425,-308.5108259,0.00031973,2]
[314036726,1707940238435,-521.0231136,0.00031973,2]
[314036727,1707940238444,-153.0,0.00031973,2]
[314036728,1707940238453,-153.0,0.00031973,2]
[314036729,1707940238462,-2474.41,0.0003199,3]
[314036730,1707940238471,-7261.79457041,0.00032,15]
[314036737,1707940241379,-3353.58169145,0.00032,15]
[314036739,1707940241436,-43940.28497362,0.00032,15]
[314036740,1707940241446,-2000.0,0.00032,10]
[314036741,1707940241455,-2000.0,0.0003201,10]
[314036742,1707940241464,-2000.0,0.0003202,10]
[314036743,1707940241473,-33.9782808,0.0003203,10]
[314036745,1707940241485,-1002.00518297,0.0003203,10]
[314036747,1707940241496,-964.01653623,0.0003203,10]
[314036749,1707940241505,-2389.51148214,0.0003204,10]
[314036752,1707940241517,-490.47200686,0.0003204,10]
[314036755,1707940241527,-200.0,0.0003226,15]
[314036758,1707940241536,-494.68145803,0.00032645,2]
[314036759,1707940241545,-166.666667,0.0003268,2]
[314036760,1707940241554,-500.0,0.00032684,7]
[314036761,1707940241563,-250.40587552,0.00032684,7]
[314036762,1707940241572,-9.58971302,0.00032684,7]
[314036763,1707940241584,-490.41028698,0.00032684,7]
[314036764,1707940241593,-500.0,0.00032684,7]
[314036765,1707940241602,-500.0,0.00032684,7]
[314036766,1707940241611,-500.0,0.00032684,7]
[314036767,1707940241621,-500.0,0.00032684,7]
[314036768,1707940241630,-500.0,0.00032684,7]
[314036769,1707940241639,-615.72361362,0.00032684,7]
[314036770,1707940241648,-500.0,0.00032684,7]
[314036771,1707940241657,-500.0,0.00032684,7]
[314036772,1707940241666,-500.0,0.00032684,7]
[314036773,1707940241681,-500.0,0.00032684,7]
[314036774,1707940241690,-500.0,0.00032684,7]
[314036775,1707940241699,-500.0,0.00032684,7]
[314036776,1707940241708,-500.0,0.00032684,7]
[314036777,1707940241718,-500.0,0.00032684,7]
[314036778,1707940241727,-500.0,0.00032684,7]
[314036779,1707940241736,-500.0,0.00032684,7]
[314036780,1707940241745,-500.0,0.00032684,7]
[314036781,1707940241755,-500.0,0.00032684,7]
[314036782,1707940241765,-500.0,0.00032684,7]
[314036783,1707940241774,-500.0,0.00032684,7]
[314036784,1707940241784,-500.0,0.00032684,7]
[314036785,1707940241793,-454.09463846,0.00032684,7]
[314036786,1707940241802,-500.0,0.00032684,7]
[314036787,1707940241811,-33032.39677494,0.00032685,7]
[314036788,1707940241823,-7840.84369285,0.00032685,7]
[314036789,1707940241835,-502.71478281,0.00032685,7]
[314036899,1707940246391,-8624.0447494,0.00032685,7]
[314036901,1707940246400,-151.0,0.00033,2]
[314036903,1707940246409,-151.0,0.00033151,2]
[314036905,1707940246418,-494.68145803,0.0003339,2]
[314036907,1707940246428,-454.2110596,0.00034,30]
[314036909,1707940246437,-1000.0,0.00034,34]
[314036911,1707940246446,-5000.0,0.0003403,7]
[314036913,1707940246456,-97.64016411,0.00034135,2]
[314036915,1707940246467,-305.53024882,0.00034135,2]
[314036917,1707940246480,-91.5110451,0.00034135,2]
[314036919,1707940246489,-151.0,0.00034521,2]
[314036921,1707940246498,-250.0,0.00034793,2]
[314036923,1707940246507,-500.0,0.00034794,14]
[314036925,1707940246516,-500.0,0.00034794,14]
[314036927,1707940246527,-442.94452119,0.00034794,14]
[314036929,1707940246536,-870.76,0.00034794,14]
[314036931,1707940246545,-870.76,0.00034794,14]
[314036933,1707940246555,-870.76,0.00034794,14]
[314036935,1707940246564,-599.56151841,0.00034794,14]
[314037049,1707940448848,6124.30288697,0.000125,2]
[314037051,1707940458064,158.68283574,0.000176,2]
[314037053,1707940462791,269.95200478,0.0001,2]
[314037054,1707940466108,3918.12632301,0.00021,2]
[314037057,1707940962357,-614.0,0.0003497,35]
[314037058,1707940962379,-740.0,0.0003497,35]
[314037059,1707940962400,-281.6,0.0003497,35]
[314037060,1707940962421,-150.5,0.0003497,35]
[314037061,1707940962491,-150.5,0.0003498,35]
[314037062,1707940962513,-150.5,0.0003498,35]
[314037063,1707940962534,-150.5,0.0003498,35]
[314037064,1707940962556,-150.5,0.0003498,35]
[314037065,1707940962578,-614.0,0.0003498,35]
[314037066,1707940962600,-740.0,0.0003498,35]
[314037067,1707940962623,-150.5,0.0003499,35]
[314037068,1707940962644,-3.95,0.0003499,35]
[314037069,1707940962721,-10147.45,0.00035,120]
[314037070,1707941080998,289.74,0.0003498,35]
[314037071,1707941082168,592.0,0.0003498,35]
[314037072,1707941082350,491.0,0.0003498,35]
[314037073,1707941082598,583.26,0.0003497,35]
[314037076,1707941345180,-8.74,0.0003497,35]
[314037077,1707941345202,-433.26,0.0003497,35]
[314037078,1707941345278,-8.74,0.0003497,35]
[314037079,1707941345305,-442.0,0.0003498,35]
[314037080,1707941345330,-150.5,0.0003499,35]
[314037081,1707941345352,-150.5,0.0003499,35]
[314037082,1707941345376,-150.5,0.0003499,35]
[314037083,1707941345398,-583.26,0.0003499,35]
[314037084,1707941345492,-14621.76,0.00035,120]
[314037127,1707941433055,-294.68032516,0.00022,2]
[314037129,1707941433066,-1748.19992455,0.00025,2]
[314037130,1707941433075,-4371.37703952,0.00025,2]
[314037132,1707941433088,-4183.1,0.00025,2]
[314037134,1707941433108,-337.43736085,0.00025,2]
[314037168,1707941438441,-16551.2923998,0.00025,2]
[314037170,1707941438451,-1006.62045186,0.00025,2]
[314037172,1707941438460,-7646.43632985,0.00025297,2]
[314037174,1707941438470,-880.71091065,0.000264,2]
[314037176,1707941438479,-2427.2228053,0.00026538,2]
[314037178,1707941438488,-280.0,0.00026552,2]
[314037181,1707941438504,-235.0,0.000268,2]
[314037183,1707941438519,-370.874979,0.00026941,2]
[314037185,1707941438529,-200.0,0.00027499,15]
[314037187,1707941438539,-633.03554553,0.0002772,2]
[314037189,1707941438549,-24900.0,0.00027756,2]
[314037190,1707941438558,-206.81799834,0.00029006,2]
[314037192,1707941438568,-620.65177728,0.00029106,2]
[314037194,1707941438578,-247.4295248,0.000293,2]
[314037196,1707941438588,-206.81799832,0.00029499,2]
[314037198,1707941438598,-3785.62,0.0002999,3]
[314037200,1707941438608,-206.81799832,0.00029992,2]
[314037202,1707941438618,-9387.70501381,0.0003,2]
[314037204,1707941438629,-280.0,0.00030249,15]
[314037206,1707941438639,-206.81799832,0.00030484,2]
[314037208,1707941438651,-620.03258886,0.00030561,2]
[314037210,1707941438661,-500.0,0.00030976,2]
[314037212,1707941438671,-500.0,0.00030976,2]
[314037215,1707941438681,-500.0,0.00030976,2]
[314037217,1707941438691,-500.0,0.00030976,2]
[314037219,1707941438700,-500.0,0.00030976,2]
[314037221,1707941438710,-500.0,0.00030976,2]
[314037223,1707941438719,-500.0,0.00030976,2]
[314037225,1707941438729,-500.0,0.00030976,2]
[314037227,1707941438739,-500.0,0.00030976,2]
[314037229,1707941438748,-171.53029398,0.00030976,2]
[314037231,1707941438759,-621.85323039,0.00030976,2]
[314037233,1707941438768,-311.92930952,0.00030976,2]
[314037235,1707941438778,-500.0,0.00030976,2]
[314037237,1707941438787,-154.46495223,0.00030976,2]
[314037239,1707941438797,-500.0,0.00030976,2]
[314037241,1707941438806,-500.0,0.00030976,2]
[314037243,1707941438815,-152.54235978,0.00030976,2]
[314037244,1707941438825,-500.0,0.00030976,2]
[314037245,1707941438834,-500.0,0.00030976,2]
[314037246,1707941438844,-51499.00238673,0.00030977,2]
[314037247,1707941438853,-206.81799832,0.00030977,2]
[314037248,1707941438863,-1264.46625031,0.00030977,2]
[314037249,1707941438872,-500.0,0.00030999,2]
[314037250,1707941438881,-500.0,0.00030999,2]
[314037251,1707941438891,-433.53081835,0.00030999,2]
[314037252,1707941438901,-48486.11695996,0.00031,4]
[314037253,1707941438911,-250.0,0.00031075,2]
[314037254,1707941438920,-50000.0,0.00031077,4]
[314037255,1707941438930,-50000.0,0.00031077,4]
[314037256,1707941438940,-50000.0,0.00031077,4]
[314037257,1707941438949,-61062.69293685,0.00031077,4]
[314037258,1707941438959,-290.807846,0.00031077,2]
[314037259,1707941438968,-151.0,0.00031077,2]
[314037260,1707941438978,-230.792569,0.00031077,2]
[314037261,1707941438988,-151.0,0.00031077,2]
[314037262,1707941438997,-154.561332,0.00031077,2]
[314037263,1707941439006,-151.0,0.00031077,2]
[314037264,1707941439020,-151.0,0.00031077,2]
[314037265,1707941439029,-151.0,0.00031077,2]
[314037266,1707941439038,-269.120619,0.00031077,2]
[314037267,1707941439048,-151.0,0.00031077,2]
[314037268,1707941439058,-151.0,0.00031077,2]
[314037269,1707941439067,-151.0,0.00031077,2]
[314037270,1707941439076,-151.0,0.00031077,2]
[314037271,1707941439086,-269.429414,0.00031077,2]
[314037272,1707941439096,-151.0,0.00031077,2]
[314037273,1707941439106,-151.0,0.00031077,2]
[314037274,1707941439116,-151.0,0.00031077,2]
[314037275,1707941439125,-151.0,0.00031077,2]
[314037276,1707941439134,-151.0,0.00031077,2]
[314037277,1707941439144,-733.481599,0.00031077,2]
[314037278,1707941439154,-733.481599,0.00031077,2]
[314037279,1707941439163,-733.481599,0.00031077,2]
[314037280,1707941439173,-733.481599,0.00031077,2]
[314037281,1707941439182,-733.481599,0.00031077,2]
[314037282,1707941439191,-733.481599,0.00031077,2]
[314037283,1707941439201,-733.481599,0.00031077,2]
[314037284,1707941439211,-733.481599,0.00031077,2]
[314037285,1707941439220,-563.353999,0.00031077,2]
[314037286,1707941439230,-563.353999,0.00031077,2]
[314037287,1707941439239,-563.353999,0.00031077,2]
[314037288,1707941439249,-563.353999,0.00031077,2]
[314037289,1707941439259,-563.353999,0.00031077,2]
[314037290,1707941439269,-563.353999,0.00031077,2]
[314037291,1707941439278,-563.353999,0.00031077,2]
[314037292,1707941439288,-563.353999,0.00031077,2]
[314037293,1707941439297,-276.470026,0.00031077,2]
[314037294,1707941439308,-39129.15237289,0.00031092,4]
[314037295,1707941439317,-151.0,0.00031092,2]
[314037296,1707941439327,-222.367056,0.00031092,2]
[314037297,1707941439336,-733.481599,0.00031092,2]
[314037298,1707941439346,-733.481599,0.00031092,2]
[314037299,1707941439356,-563.353999,0.00031092,2]
[314037300,1707941439366,-563.353999,0.00031092,2]
[314037301,1707941439375,-300.0,0.0003166,2]
[314037302,1707941439385,-500.0,0.0003176,2]
[314037303,1707941439395,-1264.46625028,0.00031786,2]
[314037304,1707941439406,-1187.07761974,0.0003193,2]
[314037305,1707941439416,-300.0,0.00032244,2]
[314037306,1707941439426,-750.0,0.00032445,2]
[314037307,1707941439437,-150.0,0.000325,12]
[314037308,1707941439446,-150.0,0.000325,4]
[314037309,1707941439457,-300.0,0.00032828,2]
[314037310,1707941439467,-691.36361694,0.00032877,2]
[314037311,1707941439479,-499.65792627,0.00033,2]
[314037312,1707941439494,-204.34207373,0.00033,2]
[314037313,1707941439504,-107689.6190156,0.00033118,2]
[314037314,1707941439513,-151.0,0.00033118,2]
[314037315,1707941439523,-733.481599,0.00033118,2]
[314037316,1707941439533,-733.481599,0.00033118,2]
[314037317,1707941439542,-563.353999,0.00033118,2]
[314037318,1707941439631,-563.353999,0.00033118,2]
[314037319,1707941439640,-1000.0,0.0003313,2]
[314037320,1707941439651,-391.0,0.00033274,15]
[314037321,1707941439660,-300.0,0.00033412,2]
[314037322,1707941439670,-169.133355,0.00033618,2]
[314037323,1707941439680,-1250.0,0.00033815,2]
[314037324,1707941439689,-285.59457877,0.000339,2]
[314037325,1707941439699,-300.0,0.00033996,2]
[314037326,1707941439709,-230.319825,0.00034055,2]
[314037327,1707941439719,-5000.0,0.00034092,7]
[314037328,1707941439728,-306.0,0.00034192,2]
[314037329,1707941439737,-368.492797,0.00034192,2]
[314037330,1707941439747,-376.5014956,0.00034192,2]
[314037331,1707941439756,-208.9620762,0.00034192,2]
[314037332,1707941439766,-153.0,0.00034192,2]
[314037333,1707941439775,-153.0,0.00034192,2]
[314037334,1707941439785,-227.94782226,0.00034209,7]
[314037335,1707941439794,-500.0,0.00034209,7]
[314037336,1707941439803,-500.0,0.00034209,7]
[314037337,1707941439813,-327.45111968,0.00034209,7]
[314037338,1707941439822,-500.0,0.00034209,7]
[314037339,1707941439832,-500.0,0.00034209,7]
[314037340,1707941439841,-500.0,0.00034209,7]
[314037341,1707941439850,-500.0,0.00034209,7]